fUSD/lending_fUSD_20250610
["ID","MTS","AMOUNT","RATE_DAILY","PERIOD"]
[365184887,1749525042611,-490.0,0.00016438,2]
[365184888,1749525042621,-490.0,0.00016438,2]
[365184889,1749525042631,-467.82264928,0.00016438,2]
[365184890,1749525042640,-490.0,0.00016438,2]
[365184891,1749525042650,-490.0,0.00016438,2]
[365184892,1749525042660,-490.0,0.00016438,2]
[365184893,1749525042670,-490.0,0.00016438,2]
[365184894,1749525042679,-490.0,0.00016438,2]
[365184895,1749525042688,-490.0,0.00016438,2]
[365184896,1749525042698,-463.09760936,0.00016438,2]
[365184897,1749525042708,-468.36591329,0.00016438,2]
[365184898,1749525042718,-510.40355464,0.00016438,2]
[365184899,1749525042728,-490.0,0.00016438,2]
[365184900,1749525042737,-475.94782658,0.00016438,2]
[365184901,1749525042746,-665.32,0.00016438,2]
[365184902,1749525042755,-490.0,0.00016438,2]
[365184903,1749525042765,-490.0,0.00016438,2]
[365184904,1749525042774,-490.0,0.00016438,2]
[365184905,1749525042785,-490.0,0.00016438,2]
[365184906,1749525042794,-490.0,0.00016438,2]
[365184907,1749525042803,-490.0,0.00016438,2]
[365184908,1749525042812,-490.0,0.00016438,2]
[365184909,1749525042821,-490.0,0.00016438,2]
[365184910,1749525042830,-490.0,0.00016438,2]
[365184911,1749525042840,-490.0,0.00016438,2]
[365184912,1749525042851,-490.0,0.00016438,2]
[365184913,1749525042861,-490.0,0.00016438,2]
[365184914,1749525042871,-470.71958838,0.00016438,2]
[365184915,1749525042880,-151.0,0.00016438,2]
[365184916,1749525042890,-398.82009344,0.00016438,2]
[365184917,1749525042899,-464.40275613,0.00016438,2]
[365184918,1749525042908,-490.0,0.00016438,2]
[365184919,1749525042917,-490.0,0.00016438,2]
[365184920,1749525042926,-490.0,0.00016438,2]
[365184921,1749525042936,-166.45482011,0.00016438,2]
[365184922,1749525042945,-151.0,0.00016438,2]
[365184923,1749525042954,-460.0,0.00016438,2]
[365184924,1749525042964,-490.0,0.00016438,2]
[365184925,1749525042973,-151.0,0.00016438,2]
[365184926,1749525042982,-490.0,0.00016438,2]
[365184927,1749525042991,-490.0,0.00016438,2]
[365184928,1749525043000,-490.0,0.00016438,2]
[365184929,1749525043011,-490.0,0.00016438,2]
[365184930,1749525043020,-392.66824503,0.00016438,2]
[365184931,1749525043029,-490.0,0.00016438,2]
[365184932,1749525043039,-453.32671418,0.00016438,2]
[365184933,1749525043048,-490.0,0.00016438,2]
[365184934,1749525043058,-490.0,0.00016438,2]
[365184935,1749525043067,-460.0,0.00016438,2]
[365184936,1749525043076,-490.0,0.00016438,2]
[365184937,1749525043085,-490.0,0.00016438,2]
[365184938,1749525043095,-490.0,0.00016438,2]
[365184939,1749525043104,-490.0,0.00016438,2]
[365184940,1749525043113,-490.0,0.00016438,2]
[365184941,1749525043123,-478.71908807,0.00016438,2]
[365184942,1749525043132,-490.0,0.00016438,2]
[365184943,1749525043141,-490.0,0.00016438,2]
[365184944,1749525043151,-449.65880305,0.00016438,2]
[365184945,1749525043160,-194.410072,0.00016438,2]
[365184946,1749525043170,-490.0,0.00016438,2]
[365184947,1749525043179,-490.0,0.00016438,2]
[365184948,1749525043188,-490.0,0.00016438,2]
[365184949,1749525043198,-644.96,0.00016438,2]
[365184950,1749525043207,-490.0,0.00016438,2]
[365184951,1749525043217,-505.16368033,0.00016438,2]
[365184952,1749525043226,-460.0,0.00016438,2]
[365184953,1749525043235,-490.0,0.00016438,2]
[365184954,1749525043244,-473.71416938,0.00016438,2]
[365184955,1749525043253,-490.0,0.00016438,2]
[365184956,1749525043262,-490.0,0.00016438,2]
[365184957,1749525043271,-490.0,0.00016438,2]
[365184958,1749525043282,-490.0,0.00016438,2]
[365184959,1749525043291,-463.59984235,0.00016438,2]
[365184960,1749525043300,-490.0,0.00016438,2]
[365184961,1749525043309,-460.0,0.00016438,2]
[365184962,1749525043319,-490.0,0.00016438,2]
[365184963,1749525043328,-490.0,0.00016438,2]
[365184964,1749525043338,-504.9663586,0.00016438,2]
[365184965,1749525043347,-490.0,0.00016438,2]
[365184966,1749525043357,-381.86558858,0.00016438,2]
[365184967,1749525043366,-490.0,0.00016438,2]
[365184968,1749525043375,-490.0,0.00016438,2]
[365184969,1749525043385,-490.0,0.00016438,2]
[365184970,1749525043394,-469.84650291,0.00016438,2]
[365184971,1749525043403,-490.0,0.00016438,2]
[365184972,1749525043412,-322.65082015,0.00016438,2]
[365184973,1749525043422,-490.0,0.00016438,2]
[365184974,1749525043431,-490.0,0.00016438,2]
[365184975,1749525043441,-460.0,0.00016438,2]
[365184976,1749525043450,-490.0,0.00016438,2]
[365184977,1749525043460,-493.04540128,0.00016438,2]
[365184978,1749525043469,-614.43,0.00016438,2]
[365184979,1749525043479,-490.0,0.00016438,2]
[365184980,1749525043489,-490.0,0.00016438,2]
[365184981,1749525043499,-460.0,0.00016438,2]
[365184982,1749525043508,-460.0,0.00016438,2]
[365184983,1749525043518,-490.0,0.00016438,2]
[365184984,1749525043528,-490.0,0.00016438,2]
[365184985,1749525043538,-490.0,0.00016438,2]
[365184986,1749525043548,-460.0,0.00016438,2]
[365184987,1749525043557,-390.9635578,0.00016438,2]
[365184988,1749525043567,-490.0,0.00016438,2]
[365184989,1749525043577,-490.0,0.00016438,2]
[365184990,1749525043589,-471.19519829,0.00016438,2]
[365184991,1749525043598,-490.0,0.00016438,2]
[365184992,1749525043608,-490.0,0.00016438,2]
[365184993,1749525043619,-460.0,0.00016438,2]
[365184994,1749525043629,-490.0,0.00016438,2]
[365184995,1749525043639,-490.0,0.00016438,2]
[365184996,1749525043649,-487.76185926,0.00016438,2]
[365184997,1749525043660,-490.0,0.00016438,2]
[365184998,1749525043670,-256.82693175,0.00016438,2]
[365184999,1749525043680,-486.11220175,0.00016438,2]
[365185000,1749525043689,-490.0,0.00016438,2]
[365185001,1749525043699,-490.0,0.00016438,2]
[365185002,1749525043708,-460.0,0.00016438,2]
[365185003,1749525043717,-862.63,0.00016438,2]
[365185004,1749525043726,-460.0,0.00016438,2]
[365185005,1749525043735,-490.0,0.00016438,2]
[365185006,1749525043745,-490.0,0.00016438,2]
[365185007,1749525043754,-2092.76,0.00016438,2]
[365185008,1749525043763,-316.1526403,0.00016438,2]
[365185009,1749525043772,-151.0,0.00016438,2]
[365185010,1749525043782,-151.0,0.00016438,2]
[365185011,1749525043791,-397.44477305,0.00016438,2]
[365185012,1749525043801,-490.0,0.00016438,2]
[365185013,1749525043810,-490.0,0.00016438,2]
[365185014,1749525043820,-475.64230212,0.00016438,2]
[365185015,1749525043829,-485.79948014,0.00016438,2]
[365185016,1749525043838,-490.0,0.00016438,2]
[365185017,1749525043847,-151.0,0.00016438,2]
[365185018,1749525043857,-481.70264149,0.00016438,2]
[365185019,1749525043866,-151.0,0.00016438,2]
[365185020,1749525043876,-490.0,0.00016438,2]
[365185021,1749525043886,-490.0,0.00016438,2]
[365185022,1749525043895,-468.1843185,0.00016438,2]
[365185023,1749525043905,-226.970412,0.00016438,2]
[365185024,1749525043915,-490.0,0.00016438,2]
[365185025,1749525043925,-490.0,0.00016438,2]
[365185026,1749525043935,-151.0,0.00016438,2]
[365185027,1749525043945,-151.0,0.00016438,2]
[365185028,1749525043954,-380.0,0.00016438,2]
[365185029,1749525043963,-380.0,0.00016438,2]
[365185030,1749525043973,-490.0,0.00016438,2]
[365185031,1749525043982,-318.167725,0.00016438,2]
[365185032,1749525043992,-490.0,0.00016438,2]
[365185033,1749525044001,-490.0,0.00016438,2]
[365185034,1749525044010,-324.93491752,0.00016438,2]
[365185035,1749525044019,-490.0,0.00016438,2]
[365185036,1749525044029,-490.0,0.00016438,2]
[365185037,1749525044038,-490.0,0.00016438,2]
[365185038,1749525044048,-490.0,0.00016438,2]
[365185039,1749525044058,-380.0,0.00016438,2]
[365185040,1749525044067,-152.616345,0.00016438,2]
[365185041,1749525044076,-490.0,0.00016438,2]
[365185042,1749525044086,-490.0,0.00016438,2]
[365185043,1749525044095,-490.0,0.00016438,2]
[365185044,1749525044104,-238.09699807,0.00016438,2]
[365185045,1749525044114,-490.0,0.00016438,2]
[365185046,1749525044123,-383.61260498,0.00016438,2]
[365185047,1749525044134,-397.05373922,0.00016438,2]
[365185048,1749525044143,-490.0,0.00016438,2]
[365185049,1749525044152,-482.77647392,0.00016438,2]
[365185050,1749525044162,-490.30714896,0.00016438,2]
[365185051,1749525044171,-490.0,0.00016438,2]
[365185052,1749525044180,-490.0,0.00016438,2]
[365185053,1749525044190,-597.22,0.00016438,2]
[365185054,1749525044199,-438.21671261,0.00016438,2]
[365185055,1749525044208,-490.0,0.00016438,2]
[365185056,1749525044218,-490.0,0.00016438,2]
[365185057,1749525044227,-490.0,0.00016438,2]
[365185058,1749525044237,-490.0,0.00016438,2]
[365185059,1749525044247,-490.0,0.00016438,2]
[365185060,1749525044257,-380.0,0.00016438,2]
[365185061,1749525044266,-490.0,0.00016438,2]
[365185062,1749525044275,-464.16816383,0.00016438,2]
[365185063,1749525044285,-490.0,0.00016438,2]
[365185064,1749525044295,-490.0,0.00016438,2]
[365185065,1749525044304,-490.0,0.00016438,2]
[365185066,1749525044314,-490.0,0.00016438,2]
[365185067,1749525044323,-506.95342808,0.00016438,2]
[365185068,1749525044332,-419.41897029,0.00016438,2]
[365185069,1749525044342,-460.0,0.00016438,2]
[365185070,1749525044351,-155.752825,0.00016438,2]
[365185071,1749525044361,-490.0,0.00016438,2]
[365185072,1749525044371,-490.0,0.00016438,2]
[365185073,1749525044380,-490.0,0.00016438,2]
[365185074,1749525044389,-490.0,0.00016438,2]
[365185075,1749525044399,-490.0,0.00016438,2]
[365185076,1749525044408,-385.65327879,0.00016438,2]
[365185077,1749525044418,-490.0,0.00016438,2]
[365185078,1749525044427,-478.40520457,0.00016438,2]
[365185079,1749525044436,-490.0,0.00016438,2]
[365185080,1749525044446,-490.0,0.00016438,2]
[365185081,1749525044455,-490.0,0.00016438,2]
[365185082,1749525044465,-490.0,0.00016438,2]
[365185083,1749525044474,-414.73808137,0.00016438,2]
[365185084,1749525044484,-490.0,0.00016438,2]
[365185085,1749525044493,-403.94502119,0.00016438,2]
[365185086,1749525044502,-490.0,0.00016438,2]
[365185087,1749525044512,-394.61179819,0.00016438,2]
[365185088,1749525044521,-575.505896,0.00016438,2]
[365185089,1749525044532,-490.0,0.00016438,2]
[365185090,1749525044542,-490.0,0.00016438,2]
[365185091,1749525044552,-490.0,0.00016438,2]
[365185092,1749525044562,-473.66794149,0.00016438,2]
[365185093,1749525044571,-490.0,0.00016438,2]
[365185094,1749525044583,-490.0,0.00016438,2]
[365185095,1749525044592,-490.0,0.00016438,2]
[365185096,1749525044796,-490.0,0.00016438,2]
[365185097,1749525044805,-490.0,0.00016438,2]
[365185098,1749525044815,-490.0,0.00016438,2]
[365185099,1749525044824,-480.0,0.00016438,2]
[365185100,1749525044833,-490.0,0.00016438,2]
[365185101,1749525044842,-490.0,0.00016438,2]
[365185102,1749525044851,-166.30435312,0.00016438,2]
[365185103,1749525044860,-368.35625801,0.00016438,2]
[365185104,1749525044868,-490.0,0.00016438,2]
[365185105,1749525044878,-388.86511213,0.00016438,2]
[365185106,1749525044887,-490.0,0.00016438,2]
[365185107,1749525044899,-490.0,0.00016438,2]
[365185108,1749525044914,-490.0,0.00016438,2]
[365185109,1749525044924,-490.0,0.00016438,2]
[365185110,1749525044934,-399.97254403,0.00016438,2]
[365185111,1749525044943,-490.0,0.00016438,2]
[365185112,1749525044953,-496.63,0.00016438,2]
[365185113,1749525044970,-409.14689411,0.00016438,2]
[365185114,1749525044980,-490.0,0.00016438,2]
[365185115,1749525044989,-515.35396759,0.00016438,2]
[365185116,1749525044999,-490.0,0.00016438,2]
[365185117,1749525045008,-490.0,0.00016438,2]
[365185118,1749525045018,-397.95709083,0.00016438,2]
[365185119,1749525045028,-490.0,0.00016438,2]
[365185120,1749525045038,-490.0,0.00016438,2]
[365185121,1749525045047,-538.03899083,0.00016438,2]
[365185122,1749525045056,-263.76068134,0.00016438,2]
[365185123,1749525045066,-500.0,0.00016438,2]
[365185124,1749525045075,-500.0,0.00016438,2]
[365185125,1749525045085,-490.19024733,0.00016438,2]
[365185126,1749525045094,-490.0,0.00016438,2]
[365185127,1749525045103,-490.0,0.00016438,2]
[365185128,1749525045112,-490.0,0.00016438,2]
[365185129,1749525045121,-490.0,0.00016438,2]
[365185130,1749525045131,-490.0,0.00016438,2]
[365185131,1749525045140,-460.71634872,0.00016438,2]
[365185132,1749525045149,-490.0,0.00016438,2]
[365185133,1749525045159,-503.58284473,0.00016438,2]
[365185134,1749525045168,-490.0,0.00016438,2]
[365185135,1749525045178,-490.0,0.00016438,2]
[365185136,1749525045187,-490.0,0.00016438,2]
[365185137,1749525045196,-490.0,0.00016438,2]
[365185138,1749525045205,-490.0,0.00016438,2]
[365185139,1749525045214,-495.98020904,0.00016438,2]
[365185140,1749525045224,-613.32818123,0.00016438,2]
[365185141,1749525045233,-490.0,0.00016438,2]
[365185142,1749525045244,-490.58822776,0.00016438,2]
[365185143,1749525045254,-490.0,0.00016438,2]
[365185144,1749525045263,-462.58758685,0.00016438,2]
[365185145,1749525045272,-474.53341236,0.00016438,2]
[365185146,1749525045281,-490.0,0.00016438,2]
[365185147,1749525045291,-490.0,0.00016438,2]
[365185148,1749525045300,-490.0,0.00016438,2]
[365185149,1749525045310,-490.0,0.00016438,2]
[365185150,1749525045319,-490.0,0.00016438,2]
[365185151,1749525045328,-433.60667183,0.00016438,2]
[365185152,1749525045338,-254.68031053,0.00016438,2]
[365185153,1749525045347,-490.0,0.00016438,2]
[365185154,1749525045356,-490.0,0.00016438,2]
[365185155,1749525045366,-490.0,0.00016438,2]
[365185156,1749525045376,-425.16677619,0.00016438,2]
[365185157,1749525045385,-490.0,0.00016438,2]
[365185158,1749525045395,-490.0,0.00016438,2]
[365185159,1749525045404,-490.0,0.00016438,2]
[365185160,1749525045413,-459.18663717,0.00016438,2]
[365185161,1749525045422,-151.0,0.00016438,2]
[365185162,1749525045432,-151.0,0.00016438,2]
[365185163,1749525045441,-276.74821747,0.00016438,2]
[365185164,1749525045450,-505.64542807,0.00016438,2]
[365185165,1749525045459,-490.0,0.00016438,2]
[365185166,1749525045469,-428.50728219,0.00016438,2]
[365185167,1749525045479,-503.28008562,0.00016438,2]
[365185168,1749525045488,-490.0,0.00016438,2]
[365185169,1749525045498,-487.28789676,0.00016438,2]
[365185170,1749525045507,-163.67194531,0.00016438,2]
[365185171,1749525045516,-490.0,0.00016438,2]
[365185172,1749525045526,-1000.0,0.00016438,2]
[365185173,1749525045535,-420.0,0.00016438,2]
[365185174,1749525045545,-490.0,0.00016438,2]
[365185175,1749525045555,-472.95194111,0.00016438,2]
[365185177,1749525045563,-490.0,0.00016438,2]
[365185178,1749525045573,-488.2174937,0.00016438,2]
[365185179,1749525045585,-490.0,0.00016438,2]
[365185180,1749525045595,-480.0,0.00016438,2]
[365185181,1749525045604,-482.02746247,0.00016438,2]
[365185182,1749525045614,-469.9659604,0.00016438,2]
[365185183,1749525045625,-435.49704536,0.00016438,2]
[365185184,1749525045635,-490.0,0.00016438,2]
[365185185,1749525045644,-1000.0,0.00016438,2]
[365185186,1749525045654,-482.02658905,0.00016438,2]
[365185188,1749525045664,-464.36087139,0.00016438,2]
[365185190,1749525045674,-565.28,0.00016438,2]
[365185192,1749525045683,-151.0,0.00016438,2]
[365185194,1749525045692,-151.0,0.00016438,2]
[365185195,1749525045701,-151.0,0.00016438,2]
[365185197,1749525045710,-430.40175016,0.00016438,2]
[365185199,1749525045720,-480.0,0.00016438,2]
[365185201,1749525045729,-572.06915225,0.00016438,2]
[365185203,1749525045740,-490.0,0.00016438,2]
[365185205,1749525045750,-490.0,0.00016438,2]
[365185207,1749525045759,-490.0,0.00016438,2]
[365185209,1749525045769,-490.0,0.00016438,2]
[365185211,1749525045778,-490.0,0.00016438,2]
[365185213,1749525045788,-175.24079433,0.00016438,2]
[365185215,1749525045797,-490.0,0.00016438,2]
[365185216,1749525045807,-152.892831,0.00016438,2]
[365185217,1749525045816,-490.0,0.00016438,2]
[365185218,1749525045825,-196.02662373,0.00016438,2]
[365185219,1749525045835,-484.71105888,0.00016438,2]
[365185220,1749525045844,-490.0,0.00016438,2]
[365185221,1749525045853,-490.0,0.00016438,2]
[365185223,1749525045862,-460.0,0.00016438,2]
[365185225,1749525045872,-579.41385887,0.00016438,2]
[365185227,1749525045881,-490.0,0.00016438,2]
[365185229,1749525045890,-491.02128207,0.00016438,2]
[365185231,1749525045901,-460.0,0.00016438,2]
[365185233,1749525045910,-490.0,0.00016438,2]
[365185235,1749525045920,-490.0,0.00016438,2]
[365185237,1749525045929,-355.76064021,0.00016438,2]
[365185238,1749525045938,-490.0,0.00016438,2]
[365185240,1749525045950,-490.0,0.00016438,2]
[365185242,1749525045960,-365.65935781,0.00016438,2]
[365185244,1749525045970,-490.0,0.00016438,2]
[365185246,1749525045979,-490.0,0.00016438,2]
[365185247,1749525045989,-490.0,0.00016438,2]
[365185248,1749525046004,-490.9954872,0.00016438,2]
[365185249,1749525046014,-490.0,0.00016438,2]
[365185250,1749525046023,-281.72084737,0.00016438,2]
[365185251,1749525046033,-490.0,0.00016438,2]
[365185252,1749525046043,-490.0,0.00016438,2]
[365185253,1749525046053,-512.43406704,0.00016438,2]
[365185254,1749525046062,-474.75723794,0.00016438,2]
[365185255,1749525046073,-490.0,0.00016438,2]
[365185256,1749525046082,-490.0,0.00016438,2]
[365185257,1749525046091,-165.22687,0.00016438,2]
[365185258,1749525046101,-490.0,0.00016438,2]
[365185259,1749525046111,-490.0,0.00016438,2]
[365185260,1749525046122,-488.70566863,0.00016438,2]
[365185261,1749525046131,-496.20376778,0.00016438,2]
[365185262,1749525046141,-510.06272307,0.00016438,2]
[365185263,1749525046151,-490.0,0.00016438,2]
[365185264,1749525046160,-490.0,0.00016438,2]
[365185265,1749525046170,-515.10951611,0.00016438,2]
[365185266,1749525046180,-513.80560161,0.00016438,2]
[365185267,1749525046190,-488.46301734,0.00016438,2]
[365185268,1749525046200,-454.04900983,0.00016438,2]
[365185269,1749525046211,-494.55577391,0.00016438,2]
[365185270,1749525046220,-480.0,0.00016438,2]
[365185271,1749525046230,-251.0727205,0.00016438,2]
[365185272,1749525046239,-486.82890592,0.00016438,2]
[365185273,1749525046250,-173.092899,0.00016438,2]
[365185274,1749525046260,-497.95039336,0.00016438,2]
[365185275,1749525046269,-490.0,0.00016438,2]
[365185276,1749525046279,-490.0,0.00016438,2]
[365185277,1749525046289,-490.0,0.00016438,2]
[365185278,1749525046299,-490.0,0.00016438,2]
[365185279,1749525046309,-501.3301226,0.00016438,2]
[365185280,1749525046319,-490.0,0.00016438,2]
[365185281,1749525046328,-490.0,0.00016438,2]
[365185282,1749525046338,-501.20631174,0.00016438,2]
[365185283,1749525046348,-490.0,0.00016438,2]
[365185284,1749525046359,-490.0,0.00016438,2]
[365185285,1749525046368,-490.0,0.00016438,2]
[365185286,1749525046378,-153.529159,0.00016438,2]
[365185287,1749525046388,-490.0,0.00016438,2]
[365185288,1749525046398,-490.0,0.00016438,2]
[365185289,1749525046407,-490.0,0.00016438,2]
[365185290,1749525046417,-467.63759077,0.00016438,2]
[365185291,1749525046426,-612.84654737,0.00016438,2]
[365185292,1749525046436,-490.0,0.00016438,2]
[365185293,1749525046446,-490.0,0.00016438,2]
[365185294,1749525046456,-490.0,0.00016438,2]
[365185295,1749525046466,-490.0,0.00016438,2]
[365185296,1749525046475,-490.0,0.00016438,2]
[365185297,1749525046485,-490.0,0.00016438,2]
[365185298,1749525046494,-490.0,0.00016438,2]
[365185299,1749525046504,-537.96,0.00016438,2]
[365185300,1749525046514,-490.0,0.00016438,2]
[365185301,1749525046524,-490.0,0.00016438,2]
[365185302,1749525046533,-151.0,0.00016438,2]
[365185303,1749525046542,-151.0,0.00016438,2]
[365185304,1749525046553,-151.0,0.00016438,2]
[365185305,1749525046562,-510.42586976,0.00016438,2]
[365185306,1749525046572,-915.11,0.00016438,2]
[365185307,1749525046585,-490.0,0.00016438,2]
[365185308,1749525046595,-504.49750146,0.00016438,2]
[365185310,1749525046604,-486.34723044,0.00016438,2]
[365185312,1749525046614,-528.87116124,0.00016438,2]
[365185313,1749525046624,-490.0,0.00016438,2]
[365185315,1749525046633,-490.0,0.00016438,2]
[365185317,1749525046643,-151.0,0.00016438,2]
[365185319,1749525046652,-151.0,0.00016438,2]
[365185321,1749525046664,-490.0,0.00016438,2]
[365185323,1749525046673,-151.0,0.00016438,2]
[365185325,1749525046683,-490.0,0.00016438,2]
[365185327,1749525046693,-151.0,0.00016438,2]
[365185329,1749525046702,-278.378408,0.00016438,2]
[365185331,1749525046711,-490.0,0.00016438,2]
[365185333,1749525046722,-483.03488165,0.00016438,2]
[365185335,1749525046733,-498.58575752,0.00016438,2]
[365185337,1749525046742,-490.0,0.00016438,2]
[365185339,1749525046751,-490.0,0.00016438,2]
[365185341,1749525046760,-490.0,0.00016438,2]
[365185342,1749525046771,-556.18,0.00016438,2]
[365185343,1749525046781,-506.88955892,0.00016438,2]
[365185344,1749525046791,-490.0,0.00016438,2]
[365185345,1749525046801,-490.0,0.00016438,2]
[365185347,1749525046810,-490.0,0.00016438,2]
[365185349,1749525046819,-494.01442503,0.00016438,2]
[365185351,1749525046829,-490.0,0.00016438,2]
[365185353,1749525046838,-490.0,0.00016438,2]
[365185355,1749525046847,-151.0,0.00016438,2]
[365185356,1749525046857,-151.0,0.00016438,2]
[365185359,1749525046867,-151.0,0.00016438,2]
[365185361,1749525046877,-200.53855008,0.00016438,2]
[365185363,1749525046886,-490.0,0.00016438,2]
[365185364,1749525046895,-178.101119,0.00016438,2]
[365185366,1749525046905,-535.23,0.00016438,2]
[365185369,1749525046915,-490.0,0.00016438,2]
[365185371,1749525046924,-490.0,0.00016438,2]
[365185373,1749525046934,-502.92814707,0.00016438,2]
[365185374,1749525046943,-490.0,0.00016438,2]
[365185376,1749525046953,-490.0,0.00016438,2]
[365185377,1749525046962,-3774.302836,0.00016438,2]
[365185378,1749525046972,-490.0,0.00016438,2]
[365185379,1749525046982,-490.0,0.00016438,2]
[365185380,1749525046992,-490.0,0.00016438,2]
[365185381,1749525047002,-490.0,0.00016438,2]
[365185382,1749525047011,-2294.03,0.00016438,2]
[365185383,1749525047020,-483.89007565,0.00016438,2]
[365185384,1749525047029,-490.0,0.00016438,2]
[365185385,1749525047040,-722.61,0.00016438,2]
[365185386,1749525047049,-489.00725661,0.00016438,2]
[365185387,1749525047059,-472.51848965,0.00016438,2]
[365185388,1749525047069,-490.0,0.00016438,2]
[365185389,1749525047079,-412.94654101,0.00016438,2]
[365185390,1749525047089,-490.0,0.00016438,2]
[365185391,1749525047098,-504.09211248,0.00016438,2]
[365185392,1749525047108,-477.70402852,0.00016438,2]
[365185393,1749525047118,-498.09588191,0.00016438,2]
[365185394,1749525047128,-490.0,0.00016438,2]
[365185395,1749525047138,-490.0,0.00016438,2]
[365185396,1749525047214,-490.0,0.00016438,2]
[365185397,1749525047224,-490.0,0.00016438,2]
[365185398,1749525047234,-490.0,0.00016438,2]
[365185399,1749525047244,-490.0,0.00016438,2]
[365185400,1749525047253,-490.0,0.00016438,2]
[365185401,1749525047263,-490.0,0.00016438,2]
[365185402,1749525047272,-490.0,0.00016438,2]
[365185403,1749525047282,-757.61,0.00016438,2]
[365185404,1749525047292,-490.0,0.00016438,2]
[365185405,1749525047302,-490.0,0.00016438,2]
[365185406,1749525047311,-490.0,0.00016438,2]
[365185407,1749525047321,-490.0,0.00016438,2]
[365185408,1749525047332,-490.0,0.00016438,2]
[365185409,1749525047341,-490.0,0.00016438,2]
[365185410,1749525047351,-493.77146418,0.00016438,2]
[365185411,1749525047361,-490.0,0.00016438,2]
[365185412,1749525047370,-490.0,0.00016438,2]
[365185413,1749525047380,-490.0,0.00016438,2]
[365185414,1749525047390,-490.0,0.00016438,2]
[365185415,1749525047399,-490.0,0.00016438,2]
[365185416,1749525047409,-490.0,0.00016438,2]
[365185417,1749525047418,-490.0,0.00016438,2]
[365185418,1749525047428,-1761.99,0.00016438,2]
[365185419,1749525047439,-498.01,0.00016438,2]
[365185420,1749525047449,-621.96292828,0.00016438,2]
[365185422,1749525047458,-490.0,0.00016438,2]
[365185423,1749525047468,-490.0,0.00016438,2]
[365185424,1749525047477,-490.0,0.00016438,2]
[365185425,1749525047487,-503.3803039,0.00016438,2]
[365185426,1749525047496,-626.78,0.00016438,2]
[365185427,1749525047506,-490.0,0.00016438,2]
[365185428,1749525047516,-511.78589953,0.00016438,2]
[365185429,1749525047525,-464.71730265,0.00016438,2]
[365185430,1749525047535,-2487.15,0.00016438,2]
[365185431,1749525047545,-490.0,0.00016438,2]
[365185432,1749525047555,-490.0,0.00016438,2]
[365185433,1749525047565,-490.0,0.00016438,2]
[365185434,1749525047575,-490.0,0.00016438,2]
[365185435,1749525047589,-490.0,0.00016438,2]
[365185436,1749525047598,-501.6327074,0.00016438,2]
[365185437,1749525047608,-464.28878407,0.00016438,2]
[365185438,1749525047617,-480.20159499,0.00016438,2]
[365185439,1749525047627,-490.0,0.00016438,2]
[365185440,1749525047636,-530.66984039,0.00016438,2]
[365185441,1749525047645,-490.0,0.00016438,2]
[365185442,1749525047655,-490.0,0.00016438,2]
[365185443,1749525047665,-490.0,0.00016438,2]
[365185444,1749525047674,-490.0,0.00016438,2]
[365185445,1749525047684,-490.0,0.00016438,2]